bitfinex/quotes_ETHUSD_20250924
["timestamp","ask_amount","ask_price","bid_price","bid_amount"]
[1758726281270,2.40158931,4198.9,4198.4,8.08789259]
[1758726281559,0.02,4198.9,4198.5,4.6939]
[1758726281763,2.38174629,4198.6,4198.5,4.017]
[1758726282066,2.38169945,4198.7,4198.5,4.017]
[1758726282263,0.02,4198.9,4198.6,0.4294]
[1758726282426,0.02,4198.9,4198.8,10.46952543]
[1758726282623,0.02,4198.9,4198.7,2.6517]
[1758726282848,0.02,4198.9,4198.0,25.12218634]
[1758726282849,0.02,4198.9,4198.8,0.6677]
[1758726283051,0.02,4198.9,4198.8,6.6687]
[1758726283252,0.02,4198.9,4198.8,9.05033284]
[1758726283438,0.02,4198.9,4198.8,6.6687]
[1758726286507,2.40157612,4198.9,4198.8,4.017]
[1758726286799,0.02,4198.9,4198.8,4.70851632]
[1758726287390,0.02,4198.9,4198.8,4.017]
[1758726287553,2.40157612,4198.9,4198.8,4.6847]
[1758726287748,2.40157612,4198.9,4198.8,4.017]
[1758726287749,0.02,4198.9,4198.8,4.017]
[1758726287987,2.40157612,4198.9,4198.8,4.017]
[1758726288286,2.8798911,4198.9,4198.8,4.017]
[1758726288675,2.38175648,4198.6,4198.4,0.2383]
[1758726288981,2.38175648,4198.6,4198.5,4.016]
[1758726289181,2.38180302,4198.5,4198.2,0.4294]
[1758726289386,2.38180302,4198.5,4198.3,4.016]
[1758726289584,0.02,4198.9,4198.3,4.016]
[1758726289782,2.38167622,4198.8,4198.3,4.4454]
[1758726289991,2.38169254,4198.7,4198.3,4.6837]
[1758726290199,2.38169254,4198.7,4197.9,3.09808595]
[1758726290200,2.40157808,4198.9,4197.9,0.71594859]
[1758726290493,2.38175158,4198.6,4198.1,3.0]
[1758726290688,2.38175158,4198.6,4198.1,3.2383]
[1758726291058,2.38175158,4198.6,4198.5,0.1184]
[1758726291262,2.38163284,4198.8,4198.5,4.1344]
[1758726291457,0.02,4198.9,4198.5,0.1184]
[1758726291656,0.4572,4198.8,4198.6,4.016]
[1758726291992,2.38168957,4198.7,4198.6,4.016]
[1758726292499,2.90565616,4198.7,4198.6,4.016]
[1758726292710,2.38197322,4198.2,4198.1,0.1184]
[1758726292991,2.38197322,4198.2,4198.1,4.016]
[1758726293405,0.1184,4198.5,4197.8,0.1184]
[1758726293557,0.1184,4198.5,4197.9,0.845]
[1758726293558,0.4572,4198.2,4197.9,0.845]
[1758726293881,2.3820867,4198.0,4197.9,0.845]
[1758726294505,2.38235023,4197.6,4197.4,6.1184]
[1758726294656,0.81373197,4198.0,4197.4,6.1184]
[1758726295090,0.1184,4197.8,4197.1,0.1184]
[1758726295291,2.38225937,4197.7,4197.2,6.0]
[1758726295492,0.1184,4197.8,4197.3,4.2543]
[1758726295698,2.38229568,4197.7,4197.4,4.016]
[1758726295997,2.38231327,4197.7,4197.4,4.016]
[1758726296291,2.38231382,4197.6,4197.4,4.016]
[1758726296483,0.1184,4197.8,4197.4,4.016]
[1758726296665,0.5756,4197.8,4197.4,4.016]
[1758726296867,2.38237045,4197.5,4197.4,4.016]
[1758726297467,2.38248397,4197.3,4197.1,0.1184]
[1758726297806,0.5756,4197.8,4197.2,4.016]
[1758726297971,0.4572,4197.7,4197.2,4.016]
[1758726298153,2.38254074,4197.2,4197.1,0.1184]
[1758726298359,2.38254074,4197.2,4197.1,4.1344]
[1758726298604,2.38247342,4197.4,4197.1,4.1344]
[1758726298894,0.1184,4197.8,4197.2,0.4294]
[1758726299095,0.1184,4197.8,4197.1,4.1344]
[1758726299310,2.38227159,4197.7,4197.3,0.2383]
[1758726299508,2.38233036,4197.6,4197.4,0.2383]
[1758726299909,0.1184,4197.8,4197.1,4.8021]
[1758726300202,2.38225695,4197.7,4197.1,4.8021]
[1758726300421,0.1184,4197.8,4197.1,4.8021]
[1758726300569,2.50060171,4197.8,4197.2,0.6643]
[1758726300905,0.1184,4197.8,4197.2,4.016]
[1758726301110,2.38236555,4197.6,4197.2,4.016]
[1758726301410,2.38192132,4198.3,4197.3,0.6643]
[1758726301606,0.51185034,4198.5,4197.4,0.2318]
[1758726301795,2.38213077,4198.0,4197.4,0.2318]
[1758726301996,2.38215468,4197.9,4197.4,0.2318]
[1758726302306,2.38210162,4198.0,4197.4,0.2318]
[1758726302505,0.4301,4198.4,4197.4,0.2318]
[1758726302506,2.38216408,4197.9,4197.4,0.2318]
[1758726302806,0.51185034,4198.5,4197.5,0.6643]
[1758726303008,0.66046939,4198.9,4197.6,4.6803]
[1758726303214,2.38198108,4198.2,4197.7,0.68812256]
[1758726303504,2.38186456,4198.4,4197.8,0.6643]
[1758726303715,2.38204928,4198.1,4197.8,0.6643]
[1758726303880,2.38179169,4198.6,4197.9,0.6643]
[1758726304067,0.24314671,4198.5,4198.0,4.4485]
[1758726304380,0.0202,4198.9,4198.2,2.38192532]
[1758726304579,0.0202,4198.9,4198.3,10.0772751]
[1758726304908,0.0202,4198.9,4198.6,8.0932751]
[1758726305069,0.0202,4198.9,4198.7,0.02381689]
[1758726305275,0.0202,4198.9,4198.8,4.6803]
[1758726305469,0.0202,4198.9,4198.8,7.06193284]
[1758726305693,0.0202,4198.9,4198.8,7.01193284]
[1758726305902,0.0202,4198.9,4198.8,10.01193284]
[1758726306175,0.0202,4198.9,4198.8,18.10520794]
[1758726306596,0.0202,4198.9,4198.8,10.01193284]
[1758726307909,0.0202,4198.9,4198.8,5.38163284]
[1758726308110,0.0202,4198.9,4198.6,1.984]
[1758726308304,0.0202,4198.9,4198.7,4.015]
[1758726309018,2.38163284,4198.8,4198.7,4.015]
[1758726309423,2.38163284,4198.8,4197.8,3.0]
[1758726309627,2.38202209,4198.2,4197.7,0.2318]
[1758726309829,2.38202209,4198.2,4196.4,25.11817847]
[1758726309830,2.38213122,4198.0,4197.8,5.999]
[1758726310011,0.0202,4198.9,4197.9,6.2308]
[1758726310333,2.38169476,4198.7,4198.0,4.27062086]
[1758726310533,2.40181636,4198.9,4198.0,4.27062086]
[1758726310738,2.38176777,4198.6,4198.0,4.2468]
[1758726310940,2.38168342,4198.8,4198.0,4.2468]
[1758726311100,2.40181636,4198.9,4198.0,4.2468]
[1758726311307,0.1184,4198.8,4198.1,0.1184]
[1758726311502,2.38168957,4198.7,4198.1,0.1184]
[1758726311714,2.3817592,4198.6,4198.2,4.015]
[1758726311914,2.38180346,4198.5,4198.2,4.015]
[1758726312236,2.38189376,4198.4,4198.2,4.015]
[1758726312638,0.52024404,4198.4,4198.3,4.015]
[1758726312844,0.4388,4198.7,4198.3,4.015]
[1758726313004,0.4388,4198.6,4198.3,4.015]
[1758726313204,0.4388,4198.5,4198.3,4.015]
[1758726313410,2.38179276,4198.6,4198.4,0.2487]
[1758726313743,2.38180302,4198.5,4198.3,4.015]
[1758726313906,2.38175125,4198.6,4198.3,4.015]
[1758726314107,2.38168937,4198.8,4198.3,4.2637]
[1758726314318,2.38168937,4198.8,4198.4,0.2487]
[1758726314539,2.38170442,4198.7,4198.4,0.2487]
[1758726314743,2.40182466,4198.9,4198.4,0.46481859]
[1758726314938,0.30426247,4198.9,4198.5,0.2487]
[1758726315150,0.0202,4198.9,4198.6,0.2487]
[1758726315320,0.0202,4198.9,4198.7,4.72851689]
[1758726315659,0.0202,4198.9,4198.7,4.2637]
[1758726315862,0.0202,4198.9,4198.7,4.015]
[1758726316856,0.0202,4198.9,4198.8,0.02381632]
[1758726317167,0.0202,4198.9,4198.8,0.71351632]
[1758726317447,0.0202,4198.9,4198.8,4.72851632]
[1758726317620,0.0202,4198.9,4198.8,4.7047]
[1758726317820,0.0202,4198.9,4198.8,7.08633284]
[1758726318020,0.0202,4198.9,4198.8,4.7047]
[1758726318849,0.0194,4198.9,4198.1,0.2487]
[1758726319052,0.0194,4198.9,4197.1,0.002]
[1758726319053,2.38167518,4198.8,4198.2,6.2477]
[1758726319238,2.38172585,4198.7,4198.2,0.2487]
[1758726319425,0.0194,4198.9,4198.3,5.999]
[1758726319936,0.0194,4198.9,4198.4,0.2487]
[1758726320139,2.40097724,4198.9,4198.4,0.2487]
[1758726320458,0.0194,4198.9,4198.5,0.71351803]
[1758726320655,0.0194,4198.9,4198.6,4.2637]
[1758726320961,2.40098256,4198.9,4198.6,4.015]
[1758726321165,2.38168403,4198.8,4198.6,4.015]
[1758726321332,2.38168957,4198.7,4198.6,4.015]
[1758726322175,2.38181517,4198.5,4198.3,1.984]
[1758726322357,0.4388,4198.7,4198.4,4.015]
[1758726322574,2.50007934,4198.8,4198.4,4.015]
[1758726322885,0.60849991,4198.8,4198.5,0.2487]
[1758726323190,0.0194,4198.9,4198.6,0.2487]
[1758726323486,0.0194,4198.9,4198.7,4.015]
[1758726323988,0.0194,4198.9,4198.7,4.2637]
[1758726324847,0.0194,4198.9,4198.8,0.2487]
[1758726325790,2.38163284,4198.8,4198.7,4.015]
[1758726325962,0.49009676,4198.8,4198.7,4.015]
[1758726326165,0.49009676,4198.8,4198.5,1.984]
[1758726326166,2.38179186,4198.6,4198.5,1.984]
[1758726326459,2.38179186,4198.6,4198.5,4.015]
[1758726326665,2.82059186,4198.6,4198.5,4.015]
[1758726327054,2.38181116,4198.5,4197.8,2.38218542]
[1758726327285,2.38181671,4198.5,4198.1,0.1184]
[1758726327486,2.38181671,4198.5,4198.2,3.331]
[1758726327667,2.38190264,4198.4,4198.2,3.331]
[1758726327872,1.04729676,4198.8,4198.2,3.331]
[1758726327873,2.82071649,4198.3,4198.2,1.984]
[1758726328073,2.38168957,4198.7,4198.3,4.015]
[1758726328392,0.60849676,4198.8,4198.3,4.015]
[1758726328685,2.5000698,4198.8,4198.4,0.27251859]
[1758726328886,2.5000698,4198.8,4198.4,0.2487]
[1758726328887,2.38171299,4198.7,4198.4,0.2487]
[1758726329050,2.3817647,4198.6,4198.5,4.015]
[1758726329278,2.38169972,4198.7,4198.5,4.015]
[1758726329477,2.38174629,4198.6,4198.5,4.015]
[1758726329810,2.38170559,4198.7,4198.5,4.015]
[1758726330108,0.1184,4198.8,4198.5,4.015]
[1758726330315,2.50003315,4198.8,4198.5,4.015]
[1758726330479,2.3817443,4198.7,4198.5,4.015]
[1758726330812,0.1184,4198.8,4198.5,4.015]
[1758726331018,2.38174577,4198.7,4198.5,4.2637]
[1758726331483,0.1184,4198.8,4198.6,0.2487]
[1758726331678,0.1184,4198.8,4198.5,0.02381803]
[1758726331880,2.38168957,4198.7,4198.6,4.015]
[1758726332099,0.1184,4198.8,4198.6,4.015]
[1758726332301,0.1184,4198.8,4198.6,4.2637]
[1758726332505,2.38168957,4198.7,4198.6,4.015]
[1758726332880,2.82048957,4198.7,4198.6,4.015]
[1758726333105,3.3544765,4198.7,4198.6,4.015]
[1758726334380,2.38185975,4198.4,4198.3,1.986]
[1758726334593,2.38182025,4198.5,4198.3,6.001]
[1758726334790,2.38174629,4198.6,4198.3,6.001]
[1758726335381,2.38185975,4198.4,4198.3,6.001]
[1758726335774,0.5572,4198.8,4198.3,6.001]
[1758726336180,0.4388,4198.7,4198.3,0.002]
[1758726336377,2.38185975,4198.4,4198.3,0.002]
[1758726336612,2.38185975,4198.4,4198.3,4.017]
[1758726337421,2.33185975,4198.4,4198.3,4.017]
[1758726338415,2.77065975,4198.4,4198.3,0.002]
[1758726338634,3.40430092,4198.4,4198.3,4.017]
[1758726339134,3.42530092,4198.4,4198.3,4.017]
[1758726339435,3.42530092,4198.4,4198.3,0.002]
[1758726339436,7.73154061,4198.4,4198.3,0.002]
[1758726339938,11.74654061,4198.4,4198.3,0.002]
[1758726341115,12.60251836,4198.4,4198.3,0.002]
[1758726341325,12.60251836,4198.4,4197.9,1e-08]
[1758726341326,3.1740867,4198.0,4197.9,1e-08]
[1758726341493,8.47912795,4198.0,4197.9,1e-08]
[1758726341696,12.95842795,4198.0,4197.9,1e-08]
[1758726342137,8.08743238,4198.0,4197.9,1e-08]
[1758726342448,12.95842795,4198.0,4197.9,1e-08]
[1758726342743,12.10243238,4198.0,4197.9,1e-08]
[1758726344203,12.74325924,4198.0,4197.9,1e-08]
[1758726344831,12.10243238,4198.0,4197.9,1e-08]
[1758726345145,12.74299548,4198.0,4197.9,1e-08]
[1758726345861,12.74219548,4198.0,4197.9,1e-08]
[1758726346062,12.10163238,4198.0,4197.9,1e-08]
[1758726347337,8.06563238,4198.0,4197.9,1e-08]
[1758726347538,12.10163238,4198.0,4197.9,1e-08]
[1758726348040,6.83033238,4198.0,4197.9,1e-08]
[1758726348264,11.9506841,4198.0,4197.9,1e-08]
[1758726348760,12.7426841,4198.0,4197.9,1e-08]
[1758726349362,8.06563238,4198.0,4197.9,1e-08]
[1758726349568,11.63833238,4198.0,4197.9,1e-08]
[1758726350833,12.08163238,4198.0,4197.9,1e-08]
[1758726351566,11.63833238,4198.0,4197.9,1e-08]
[1758726352671,12.08163238,4198.0,4197.9,1e-08]
[1758726353860,12.10263238,4198.0,4197.9,1e-08]
[1758726354061,12.08163238,4198.0,4197.9,1e-08]
[1758726354433,12.10263238,4198.0,4197.9,1e-08]
[1758726355058,12.08163238,4198.0,4197.9,1e-08]
[1758726355456,7.62233238,4198.0,4197.9,1e-08]
[1758726355675,11.63833238,4198.0,4197.9,1e-08]
[1758726355879,7.62233238,4198.0,4197.9,1e-08]
[1758726358347,0.792,4197.5,4197.1,1e-08]
[1758726358542,3.17454074,4197.2,4197.1,1e-08]
[1758726358772,6.68878043,4197.2,4197.1,1e-08]
[1758726358970,7.00301321,4197.2,4197.1,1e-08]
[1758726360079,7.00301321,4197.2,4197.1,0.46650001]
[1758726360251,7.00301321,4197.2,4197.1,0.70930001]
[1758726360662,5.89678043,4197.2,4197.1,0.70930001]
[1758726360862,2.89678043,4197.2,4197.1,0.70930001]
[1758726361061,2.38254074,4197.2,4197.1,0.70930001]
[1758726361983,3.5123376,4197.7,4197.1,0.70930001]
[1758726361984,0.5123376,4197.6,4197.1,0.70930001]
[1758726362308,0.64037025,4198.5,4197.2,0.7093]
[1758726362448,2.38185975,4198.4,4197.3,0.7093]
[1758726362654,2.38185975,4198.4,4197.1,0.02382598]
[1758726362655,1.158558,4198.4,4197.4,0.73312427]
[1758726362879,2.38170232,4198.7,4197.5,0.7093]
[1758726362880,0.512535,4198.7,4197.5,0.7093]
[1758726363103,2.38198778,4198.2,4197.6,2.6933]
[1758726363288,2.38203096,4198.1,4197.7,0.7093]
[1758726363491,2.38181086,4198.5,4197.8,0.7093]
[1758726363691,4.532535,4198.8,4197.9,0.73312143]
[1758726363988,2.38197417,4198.2,4198.0,0.7093]
[1758726364200,2.38163284,4198.8,4197.7,4.02]
[1758726364506,2.38207076,4198.1,4197.2,2.38252919]
[1758726364712,2.38225108,4197.8,4197.3,2.6933]
[1758726364854,2.38213775,4198.0,4197.4,0.7093]
[1758726365059,2.38215325,4197.9,4197.5,0.7093]
[1758726365358,2.38219198,4197.9,4197.6,0.7093]
[1758726365553,0.512535,4198.5,4197.7,0.7093]
[1758726365767,2.38208828,4198.0,4197.8,0.2428]
[1758726365969,0.59649052,4198.5,4197.3,1.984]
[1758726365970,0.512535,4198.4,4197.9,0.7093]
[1758726366289,2.3820867,4198.0,4197.9,0.7093]
[1758726366454,2.38227512,4197.7,4197.6,0.2428]
[1758726367272,0.512535,4198.4,4197.6,0.7093]
[1758726367478,2.38201461,4198.2,4197.7,0.2428]
[1758726367773,0.22054958,4198.3,4197.8,0.4665]
[1758726368004,0.512535,4198.8,4197.9,0.7093]
[1758726368169,2.38197796,4198.2,4198.0,0.7093]
[1758726368507,2.50031818,4198.3,4198.1,0.7093]
[1758726368692,0.001,4198.0,4197.6,0.14422313]
[1758726368892,0.001,4198.0,4197.7,6.006]
[1758726369295,0.001,4198.0,4197.8,0.7093]
[1758726369712,0.001,4198.0,4197.9,0.2428]
[1758726369912,2.50149035,4198.0,4197.9,0.2428]
[1758726370072,2.50149035,4198.0,4197.9,0.7093]
[1758726370477,2.50149035,4198.0,4197.9,0.2428]
[1758726370681,2.38225695,4197.7,4197.6,0.2448]
[1758726370985,2.38225695,4197.7,4197.6,6.2508]
[1758726371392,2.38221673,4197.8,4197.6,6.7173]
[1758726371591,2.3822002,4197.8,4197.7,0.7086]
[1758726371917,2.50152911,4198.0,4197.7,0.7086]
[1758726372075,2.38216422,4197.9,4197.8,0.7086]
[1758726372278,0.1194,4198.0,4197.8,0.7086]
[1758726372619,0.001,4198.0,4197.9,0.7086]
[1758726373003,0.0002,4198.0,4197.9,0.7086]
[1758726374195,0.0002,4198.0,4197.9,3.09074345]
[1758726375881,0.0002,4198.0,4197.9,3.11456488]
[1758726376121,0.0002,4198.0,4197.9,0.7086]
[1758726376291,0.0002,4198.0,4197.9,3.09074345]
[1758726376496,0.0002,4198.0,4197.9,9.09474345]
[1758726377511,0.0002,4198.0,4197.9,7.11174345]
[1758726377714,0.0002,4198.0,4197.9,0.7086]
[1758726377899,0.0002,4198.0,4197.6,0.002]
[1758726378100,0.4644,4198.0,4197.7,2.921]
[1758726378310,0.4644,4198.0,4197.6,0.002]
[1758726378311,0.4642,4197.9,4197.6,0.002]
[1758726378540,2.84634398,4197.9,4197.6,4.022]
[1758726378723,2.38214398,4197.9,4197.6,4.022]
[1758726379531,2.38214345,4197.9,4197.6,0.002]
[1758726379737,0.0002,4198.0,4197.6,0.002]
[1758726379738,2.3822002,4197.8,4197.7,4.021]
[1758726380598,2.38225695,4197.7,4197.6,0.002]
[1758726381343,0.47645259,4197.8,4197.6,0.002]
[1758726381524,2.38225695,4197.7,4197.6,0.002]
[1758726381730,3.07665695,4197.7,4197.6,0.002]
[1758726381955,2.38225695,4197.7,4197.6,0.002]
[1758726383441,2.38225695,4197.7,4197.5,4.02]
[1758726383442,2.3823137,4197.6,4197.5,4.014907]
[1758726384103,0.1184,4197.7,4197.1,1e-08]
[1758726384303,0.1184,4197.7,4197.2,0.5613]
[1758726384508,2.38238386,4197.5,4197.3,0.7086]
[1758726384702,2.38238386,4197.5,4197.4,0.2373]
[1758726384901,2.38238386,4197.5,4197.2,0.324]
[1758726385143,2.38238386,4197.5,4197.2,0.5613]
[1758726385507,0.1184,4197.7,4197.2,0.5613]
[1758726385725,2.38242686,4197.5,4197.2,0.5613]
[1758726385930,2.38237859,4197.5,4197.2,0.5613]
[1758726386170,0.1184,4197.7,4197.2,0.324]
[1758726386330,2.38247085,4197.4,4197.2,0.324]
[1758726386669,2.38237808,4197.5,4197.2,0.324]
[1758726386860,2.38248221,4197.4,4197.2,0.324]
[1758726387178,2.38248397,4197.3,4197.2,0.324]
[1758726387331,2.38254074,4197.2,4197.1,1e-08]
[1758726388265,2.38203287,4198.1,4197.1,1e-08]
[1758726388266,2.38229204,4198.0,4197.2,2.38253397]
[1758726388431,2.38229204,4198.0,4197.3,0.73242483]
[1758726388765,2.38229204,4198.0,4197.1,1e-08]
[1758726388766,2.38214345,4197.9,4197.4,4.7336]
[1758726388927,2.38214345,4197.9,4197.5,0.7086]
[1758726389134,2.38214345,4197.9,4197.6,0.2373]
[1758726389371,0.0002,4198.0,4197.4,4.025]
[1758726389528,2.38230058,4197.7,4197.4,4.025]
[1758726389734,2.38233853,4197.6,4197.4,4.025]
[1758726390034,2.38233853,4197.6,4197.4,4.2623]
[1758726390347,2.38237045,4197.5,4197.4,4.025]
[1758726390528,2.38237045,4197.5,4197.1,1e-08]
[1758726390732,2.38218849,4197.9,4197.4,4.025]
[1758726390933,0.26206026,4197.8,4197.5,0.2373]
[1758726391473,0.23841414,4198.0,4197.4,4.4963]
[1758726391474,0.23841414,4198.0,4197.4,4.025]
[1758726391651,2.38214345,4197.9,4197.6,0.2373]
[1758726391834,2.38225695,4197.7,4197.6,0.2373]
[1758726392040,2.38237045,4197.5,4197.4,4.025]
[1758726392641,0.513564,4197.8,4197.4,4.025]
[1758726392972,2.38237045,4197.5,4197.4,4.025]
[1758726393171,2.38230447,4197.7,4197.4,4.026]
[1758726393399,0.0002,4198.0,4197.5,0.2373]
[1758726393558,2.3823137,4197.6,4197.4,4.026]
[1758726393756,2.38227117,4197.7,4197.4,4.026]
[1758726393970,2.3823137,4197.6,4197.5,0.2373]
[1758726394470,2.3823137,4197.6,4197.4,4.026]
[1758726394471,2.38235546,4197.6,4197.4,4.026]
[1758726394660,2.38237045,4197.5,4197.4,4.026]
[1758726395073,2.38237045,4197.5,4197.4,4.2633]
[1758726395274,2.38237045,4197.5,4197.4,4.026]
[1758726395569,2.38232229,4197.6,4197.4,4.026]
[1758726395786,2.38220452,4197.8,4197.4,4.026]
[1758726395991,2.38220452,4197.8,4197.5,0.7086]
[1758726396185,2.38220452,4197.8,4197.5,0.2373]
[1758726396504,2.38220452,4197.8,4197.6,0.7086]
[1758726396692,2.38233531,4197.6,4197.4,4.026]
[1758726396886,2.38233531,4197.6,4197.4,4.2633]
[1758726397763,2.38237045,4197.5,4197.4,4.2633]
[1758726397965,2.38220528,4197.8,4197.4,4.2633]
[1758726398166,0.1184,4197.7,4197.5,0.2373]
[1758726398393,0.1184,4197.7,4197.4,4.026]
[1758726398594,2.50069594,4197.7,4197.6,0.2373]
[1758726398767,2.50069594,4197.7,4197.4,4.026]
[1758726398768,2.38233246,4197.6,4197.4,4.026]
[1758726398963,2.38237045,4197.5,4197.4,4.026]
[1758726399585,2.38251806,4197.3,4197.1,4.54730001]
[1758726399789,0.6944,4197.6,4197.1,4.31000001]
[1758726399991,0.6944,4197.6,4197.1,1e-08]
[1758726399992,2.38174074,4197.2,4197.1,1e-08]
[1758726400188,2.38174074,4197.2,4197.1,4.02900001]
[1758726400380,3.07614074,4197.2,4197.1,4.02900001]
[1758726400581,2.89552622,4197.2,4197.1,4.02900001]
[1758726400903,3.37374176,4197.2,4197.1,4.02900001]
[1758726401104,3.42332724,4197.2,4197.1,4.02900001]
[1758726401307,2.90954176,4197.2,4197.1,4.02900001]
[1758726401498,3.37374176,4197.2,4197.1,4.02900001]
[1758726401672,2.90954176,4197.2,4197.1,4.02900001]
[1758726402397,3.59664176,4197.2,4197.1,4.02900001]
[1758726402705,3.36954176,4197.2,4197.1,4.02900001]
[1758726402896,2.90954176,4197.2,4197.1,4.02900001]
[1758726405278,2.38174074,4197.2,4197.1,4.02900001]
[1758726405474,2.38174074,4197.2,4197.1,1e-08]
[1758726405775,3.06884074,4197.2,4197.1,4.02600001]
[1758726405991,2.89537892,4197.2,4197.1,4.02600001]
[1758726406192,3.58247892,4197.2,4197.1,1e-08]
[1758726406366,4.97097521,4197.2,4197.1,1e-08]
[1758726406886,13.07630909,4197.2,4197.1,1e-08]
[1758726407274,12.38920909,4197.2,4197.1,1e-08]
[1758726407465,13.07630909,4197.2,4197.1,1e-08]
[1758726408109,16.64130909,4197.2,4197.1,1e-08]
[1758726408320,16.87420909,4197.2,4197.1,1e-08]
[1758726408676,17.10130909,4197.2,4197.1,1e-08]
[1758726409075,17.74167934,4197.2,4197.1,1e-08]
[1758726409729,25.20664297,4197.2,4197.1,1e-08]
[1758726409883,14.28004492,4196.9,4196.8,1e-08]
[1758726410077,6.17476782,4196.8,4196.6,1e-08]
[1758726410277,0.792,4196.3,4196.1,1e-08]
[1758726410501,3.17488138,4196.6,4196.1,1e-08]
[1758726410502,26.13741446,4196.2,4196.1,1e-08]
[1758726410700,18.71918058,4196.2,4196.1,1e-08]
[1758726411411,19.5743917,4196.2,4196.1,1e-08]
[1758726411578,21.96567785,4196.2,4196.1,1e-08]
[1758726412276,21.90246673,4196.2,4196.1,1e-08]
[1758726412593,41.82539083,4196.2,4196.1,1e-08]
[1758726412792,3.17567658,4195.2,4195.1,1e-08]
[1758726413187,4.37641476,4195.2,4195.1,1e-08]
[1758726413534,9.48641622,4195.2,4195.1,1e-08]
[1758726414212,5.45541622,4195.2,4195.1,1e-08]
[1758726414515,9.48541622,4195.2,4195.1,1e-08]
[1758726414686,2.38367658,4195.2,4195.1,1e-08]
[1758726414886,2.38367658,4195.2,4195.1,0.24480001]
[1758726415413,2.38367658,4195.2,4195.1,1e-08]
[1758726416202,2.38367658,4195.2,4195.1,0.24480001]
[1758726416403,2.38367658,4195.2,4195.1,0.67550001]
[1758726416803,2.38367658,4195.2,4195.1,0.24480001]
[1758726417522,2.38367658,4195.2,4195.1,1e-08]
[1758726417700,2.77408681,4195.2,4195.1,1e-08]
[1758726418629,3.6871,4196.1,4195.1,0.24480001]
[1758726418830,2.38367658,4195.2,4195.1,0.67550001]
[1758726419017,2.38367658,4195.2,4195.1,0.24480001]
[1758726419219,2.38367658,4195.2,4195.1,0.67550001]
[1758726419422,2.38367658,4195.2,4195.1,1e-08]
[1758726419619,2.38354104,4195.5,4195.1,0.67550001]
[1758726419942,2.38357085,4195.4,4195.1,0.24430001]
[1758726420146,2.38362951,4195.3,4195.2,0.6738]
[1758726420442,2.38367658,4195.2,4195.1,1e-08]
[1758726421002,3.17567658,4195.2,4195.1,1e-08]
[1758726421243,2.38367658,4195.2,4195.1,1e-08]
[1758726421740,2.38367658,4195.2,4195.1,0.24430001]
[1758726421943,2.90807744,4195.2,4195.1,1e-08]
[1758726423342,2.90807744,4195.2,4195.1,0.24430001]
[1758726423546,2.90807744,4195.2,4195.1,1e-08]
[1758726424219,2.90807744,4195.2,4195.1,0.67380001]
[1758726424554,2.38367658,4195.2,4195.1,0.67380001]
[1758726424918,3.0322438,4196.2,4195.1,0.00200001]
[1758726424919,2.38363679,4195.3,4195.1,0.00200001]
[1758726425244,3.0,4195.8,4195.1,0.24630001]
[1758726425448,2.38367658,4195.2,4195.1,0.24630001]
[1758726426351,2.38367658,4195.2,4195.1,0.67580001]
[1758726428217,4.045,4195.9,4195.2,0.2443]
[1758726428547,2.38367658,4195.2,4195.1,0.00200001]
[1758726429754,2.84047658,4195.2,4195.1,0.00200001]
[1758726430045,3.07287658,4195.2,4195.1,0.00200001]
[1758726432285,10.90987658,4195.2,4195.1,0.00200001]
[1758726432481,11.42171082,4195.2,4195.1,0.00200001]
[1758726432685,12.86633778,4195.2,4195.1,0.00200001]
[1758726432887,13.50729543,4195.2,4195.1,0.00200001]
[1758726433451,12.86633778,4195.2,4195.1,0.00200001]
[1758726433649,13.72094799,4195.2,4195.1,0.00200001]
[1758726435151,12.86633778,4195.2,4195.1,0.00200001]
[1758726436211,6.1757334,4195.1,4194.6,1e-08]
[1758726436513,3.17596071,4194.7,4194.6,1e-08]
[1758726436803,8.59206348,4194.7,4194.6,1e-08]
[1758726437124,7.73679495,4194.7,4194.6,1e-08]
[1758726437658,3.68779495,4194.7,4194.6,1e-08]
[1758726437857,9.52774636,4194.7,4194.6,1e-08]
[1758726438306,9.28344636,4194.7,4194.6,1e-08]
[1758726438514,5.23444636,4194.7,4194.6,1e-08]
[1758726438672,18.23111663,4194.7,4194.6,1e-08]
[1758726439981,19.51203194,4194.7,4194.6,1e-08]
[1758726440785,19.75633194,4194.7,4194.6,1e-08]
[1758726441090,18.47441663,4194.7,4194.6,1e-08]
[1758726442066,18.47441663,4194.7,4194.1,1e-08]
[1758726442067,3.1762449,4194.2,4194.1,1e-08]
[1758726442306,20.681391,4194.2,4194.1,1e-08]
[1758726442507,20.925691,4194.2,4194.1,1e-08]
[1758726442677,0.792,4193.8,4192.6,0.2256]
[1758726442877,2.3848135,4193.2,4192.6,0.2256]
[1758726443106,2.89664774,4193.2,4192.6,0.2256]
[1758726443414,5.62462968,4193.2,4192.6,0.2256]
[1758726443624,8.62462968,4193.2,4192.6,0.2256]
[1758726443779,8.62462968,4193.2,4193.1,1e-08]
[1758726444117,9.48084574,4193.2,4193.1,1e-08]
[1758726444425,10.16774574,4193.2,4193.1,1e-08]
[1758726444582,9.31152968,4193.2,4193.1,1e-08]
[1758726445076,9.06722968,4193.2,4193.1,1e-08]
[1758726445277,9.31152968,4193.2,4193.1,1e-08]
[1758726446128,10.59585377,4193.2,4193.1,1e-08]
[1758726446490,8.62462968,4193.2,4193.1,1e-08]
[1758726446690,12.66962968,4193.2,4193.1,1e-08]
[1758726447124,9.47871658,4193.2,4193.1,1e-08]
[1758726447436,12.66962968,4193.2,4193.1,1e-08]
[1758726448090,3.53693984,4193.2,4193.1,0.69570001]
[1758726448322,2.89664774,4193.2,4193.1,0.69570001]
[1758726448724,3.68864774,4193.2,4193.1,1e-08]
[1758726448934,9.11724774,4193.2,4193.1,1e-08]
[1758726449101,10.64587183,4193.2,4193.1,1e-08]
[1758726449303,11.75283389,4193.2,4193.1,1e-08]
[1758726449675,11.75283389,4193.2,4192.1,0.02]
[1758726449676,6.17738237,4192.2,4192.1,0.02]